bitfinex-derivatives/quotes_SOLF0:USTF0_20241206
["timestamp","ask_amount","ask_price","bid_price","bid_amount"]
[1733502367210,2.0992,237.89,237.83,2.0996]
[1733502367407,6.5160944,237.93,237.85,6.5160944]
[1733502367709,2.0992,237.88,237.85,6.5160944]
[1733502369004,2.0991,237.9,237.85,6.5160944]
[1733502369210,2.0991,237.9,237.85,8.6155944]
[1733502369506,6.5160944,237.94,237.87,6.5160944]
[1733502369710,2.0991,237.9,237.87,6.5160944]
[1733502370307,6.5160944,237.92,237.79,2.78]
[1733502370511,6.5160944,237.92,237.85,6.5160944]
[1733502370806,6.5160944,237.92,237.85,8.6155944]
[1733502371012,6.5160944,237.94,237.85,6.5160944]
[1733502371611,2.0992,237.88,237.87,6.5160944]
[1733502372313,2.0992,237.89,237.87,6.5160944]
[1733502372712,6.5160944,237.93,237.87,6.5160944]
[1733502372905,2.0992,237.88,237.87,6.5160944]
[1733502374210,6.5160944,237.93,237.78,1.3183]
[1733502374413,6.5160944,237.93,237.85,6.5160944]
[1733502374717,2.0992,237.89,237.83,6.5160944]
[1733502374910,6.5160944,237.91,237.78,1.3183]
[1733502375110,6.5160944,237.89,237.78,1.3183]
[1733502375410,2.0996,237.85,237.83,6.5160944]
[1733502375805,2.0996,237.84,237.83,6.5160944]
[1733502377315,2.0996,237.84,237.79,2.1]
[1733502377512,2.0996,237.84,237.82,6.5160944]
[1733502379813,2.0995,237.85,237.82,6.5160944]
[1733502380211,2.0995,237.85,237.78,1.3183]
[1733502380212,2.0995,237.85,237.84,6.5160944]
[1733502382212,6.5160944,237.89,237.78,1.3183]
[1733502382420,2.0996,237.84,237.82,6.5160944]
[1733502382619,6.5160944,237.89,237.82,6.5160944]
[1733502383010,2.0995,237.85,237.82,6.5160944]
[1733502383416,6.5160944,237.89,237.82,6.5160944]
[1733502383917,6.5160944,237.89,237.78,1.3183]
[1733502384115,2.78,237.9,237.78,1.3183]
[1733502384320,6.5160944,237.87,237.8,6.5160944]
[1733502384720,6.5160944,237.87,237.8,8.6159944]
[1733502385023,6.5160944,237.87,237.8,6.5160944]
[1733502385221,6.5160944,237.89,237.82,6.5160944]
[1733502385617,2.78,237.9,237.78,1.3183]
[1733502385618,6.5160944,237.87,237.8,6.5160944]
[1733502385822,6.5160944,237.87,237.8,8.6159944]
[1733502386426,2.0996,237.85,237.8,8.6159944]
[1733502386627,6.5160944,237.87,237.8,6.5160944]
[1733502387826,6.5160944,237.87,237.78,1.3183]
[1733502388026,6.5160944,237.87,237.79,6.5160944]
[1733502388228,2.0996,237.84,237.8,2.0999]
[1733502388831,2.0996,237.84,237.79,8.6160944]
[1733502389825,2.0995,237.86,237.81,8.6158944]
[1733502390126,6.5160944,237.87,237.81,8.6158944]
[1733502390625,2.0995,237.85,237.81,6.5160944]
[1733502390831,6.5160944,237.89,237.83,6.5160944]
[1733502391526,1.3383,237.95,237.83,6.5160944]
[1733502391831,6.5160944,237.92,237.85,6.5160944]
[1733502392225,6.5160944,237.92,237.86,2.0993]
[1733502392632,6.5160944,237.92,237.85,6.5160944]
[1733502392927,2.78,237.93,237.86,2.0994]
[1733502392928,2.0991,237.89,237.86,2.0994]
[1733502393930,6.5160944,237.88,237.78,1.3183]
[1733502394136,6.5160944,237.88,237.83,2.0996]
[1733502394330,6.5160944,237.88,237.81,6.5160944]
[1733502394527,2.0991,237.9,237.83,6.5160944]
[1733502394828,6.5160944,237.9,237.83,6.5160944]
[1733502395233,2.0992,237.89,237.85,2.0995]
[1733502395429,6.5160944,237.9,237.83,6.5160944]
[1733502395833,2.0993,237.88,237.84,2.0995]
[1733502396040,2.0993,237.88,237.83,6.5160944]
[1733502396041,6.5160944,237.9,237.83,6.5160944]
[1733502396426,2.0993,237.88,237.83,8.6156944]
[1733502396637,2.0993,237.88,237.83,6.5160944]
[1733502397531,2.0991,237.9,237.85,6.5160944]
[1733502397732,6.5160944,237.92,237.85,6.5160944]
[1733502398235,6.5160944,237.9,237.83,6.5160944]
[1733502398731,6.5160944,237.9,237.78,4.0983]
[1733502399035,6.5160944,237.9,237.82,6.5160944]
[1733502399534,2.0994,237.87,237.83,2.0996]
[1733502401730,2.0994,237.87,237.82,6.5160944]
[1733502401731,2.0992,237.88,237.84,6.5160944]
[1733502402237,2.0993,237.87,237.84,6.5160944]
[1733502402533,6.5160944,237.91,237.78,1.3183]
[1733502402736,2.0994,237.87,237.82,8.6157944]
[1733502402935,2.0994,237.87,237.82,6.5160944]
[1733502403626,2.0992,237.88,237.83,2.0996]
[1733502403833,2.0992,237.88,237.82,6.5160944]
[1733502404834,2.0992,237.88,237.84,8.6156944]
[1733502405234,2.0993,237.87,237.84,6.5160944]
[1733502407235,2.0994,237.86,237.81,6.5160944]
[1733502408242,6.5160944,237.89,237.81,6.5160944]
[1733502408441,6.5160944,237.89,237.83,6.5160944]
[1733502409246,6.5160944,237.89,237.78,1.3183]
[1733502409247,2.0993,237.87,237.82,8.6157944]
[1733502409633,2.0993,237.87,237.82,6.5160944]
[1733502410641,2.0993,237.87,237.83,2.0997]
[1733502412142,2.0993,237.87,237.82,6.5160944]
[1733502412342,2.0993,237.87,237.82,8.6157944]
[1733502412939,2.0994,237.86,237.82,8.6157944]
[1733502413141,6.5160944,237.9,237.82,8.6157944]
[1733502413336,6.5160944,237.9,237.83,2.0996]
[1733502413538,2.0993,237.88,237.83,2.0996]
[1733502413745,2.0993,237.88,237.84,2.0995]
[1733502413941,6.5160944,237.9,237.84,8.6155944]
[1733502414339,1.3383,237.95,237.86,6.5160944]
[1733502414543,6.5160944,237.94,237.78,1.3183]
[1733502414845,6.5160944,237.92,237.85,6.5160944]
[1733502416337,6.5160944,237.92,237.88,2.0992]
[1733502416536,6.5160944,237.92,237.78,1.3183]
[1733502416537,6.5160944,237.92,237.83,6.5160944]
[1733502416938,6.5160944,237.88,237.78,1.3183]
[1733502417143,6.5160944,237.88,237.79,6.5160944]
[1733502417747,6.5160944,237.88,237.81,6.5160944]
[1733502418751,2.0993,237.87,237.82,2.0997]
[1733502419449,6.5160944,237.88,237.78,1.3183]
[1733502419749,6.5160944,237.88,237.81,6.5160944]
[1733502419949,2.78,237.93,237.83,6.5160944]
[1733502420150,6.5160944,237.91,237.83,6.5160944]
[1733502420352,6.5160944,237.89,237.83,6.5160944]
[1733502420650,2.78,237.93,237.83,6.5160944]
[1733502420848,6.5160944,237.9,237.83,6.5160944]
[1733502421152,6.5160944,237.88,237.81,6.5160944]
[1733502421449,2.0993,237.87,237.78,1.3183]
[1733502421646,6.5160944,237.88,237.78,1.3183]
[1733502421846,6.5160944,237.88,237.82,2.0997]
[1733502422748,6.5160944,237.88,237.8,6.5160944]
[1733502422950,6.5160944,237.92,237.86,6.5160944]
[1733502423345,1.3383,237.95,237.78,1.3183]
[1733502423550,6.5160944,237.92,237.85,6.5160944]
[1733502423853,8.6149944,237.92,237.88,2.0991]
[1733502424049,6.5160944,237.92,237.78,1.3183]
[1733502424252,6.5160944,237.92,237.84,6.5160944]
[1733502424951,2.0991,237.9,237.86,2.0994]
[1733502425250,2.76,237.94,237.84,6.5160944]
[1733502425447,8.6149944,237.93,237.88,2.0992]
[1733502425652,8.6149944,237.93,237.86,6.5160944]
[1733502425852,6.5160944,237.93,237.86,6.5160944]
[1733502426151,2.0989,237.92,237.84,6.5160944]
[1733502426453,6.5160944,237.93,237.84,6.5160944]
[1733502426643,2.099,237.91,237.88,2.0992]
[1733502426843,6.5160944,237.93,237.88,2.0992]
[1733502428452,2.099,237.9,237.87,2.0993]
[1733502428854,6.5160944,237.93,237.84,6.5160944]
[1733502429148,6.5160944,237.93,237.86,6.5160944]
[1733502429551,8.6148944,237.93,237.89,2.0991]
[1733502429750,9.2760944,237.95,237.86,6.5160944]
[1733502430749,6.5160944,237.96,237.88,6.5160944]
[1733502431050,3.09632,238.04,237.88,6.5160944]
[1733502431051,2.76,237.99,237.88,6.5160944]
[1733502431251,3.09632,238.04,237.88,6.5160944]
[1733502431444,8.6144944,237.97,237.93,2.0988]
[1733502431644,6.5160944,237.97,237.89,1.3752]
[1733502432154,6.5160944,237.95,237.89,1.3752]
[1733502432753,2.0987,237.94,237.89,3.4743]
[1733502432951,6.5160944,237.95,237.89,1.3752]
[1733502433145,2.0988,237.94,237.89,1.3752]
[1733502433353,3.09632,238.04,237.93,6.5160944]
[1733502433558,18.55010151,238.03,237.93,6.5160944]
[1733502433749,2.0982,238.0,237.95,2.0986]
[1733502433951,6.5160944,238.01,237.9,1.2685]
[1733502434146,6.5160944,237.97,237.9,1.2685]
[1733502434351,6.5160944,237.95,237.89,1.3752]
[1733502434551,6.5160944,237.97,237.9,6.5160944]
[1733502434850,6.5160944,237.97,237.89,1.3752]
[1733502435047,2.0987,237.94,237.89,9.9903944]
[1733502435245,2.0987,237.94,237.89,1.3752]
[1733502435446,2.0987,237.94,237.89,3.4743]
[1733502435645,6.5160944,237.97,237.89,7.8912944]
[1733502436054,2.0985,237.96,237.9,2.099]
[1733502436243,2.0985,237.96,237.89,7.8912944]
[1733502437152,2.0986,237.95,237.89,7.8912944]
[1733502437452,6.5160944,237.97,237.89,7.8912944]
[1733502438059,6.5160944,237.97,237.91,6.5160944]
[1733502438252,6.5160944,237.99,237.91,6.5160944]
[1733502438553,2.0984,237.98,237.93,2.0987]
[1733502439052,2.0986,237.95,237.9,2.099]
[1733502439449,2.0986,237.95,237.89,7.8912944]
[1733502439950,6.5160944,237.97,237.92,2.0989]
[1733502441558,2.0986,237.96,237.92,2.0989]
[1733502442755,2.0986,237.96,237.91,6.5160944]
[1733502442756,2.0986,237.96,237.93,2.0988]
[1733502442956,2.0986,237.96,237.89,1.3752]
[1733502443156,2.0986,237.96,237.9,6.5160944]
[1733502443659,2.0986,237.96,237.93,2.0988]
[1733502444658,6.5160944,237.99,237.9,6.5160944]
[1733502444961,2.0984,237.98,237.94,2.0986]
[1733502447350,6.5160944,238.0,237.92,6.5160944]
[1733502447559,6.5160944,237.98,237.89,1.3752]
[1733502447858,6.5160944,237.98,237.9,6.5160944]
[1733502448458,6.5160944,237.98,237.91,2.0989]
[1733502449156,2.0985,237.96,237.9,6.5160944]
[1733502449350,2.0985,237.96,237.92,2.0988]
[1733502449957,2.0986,237.95,237.92,2.0988]
[1733502451455,2.0985,237.96,237.92,2.0988]
[1733502451754,2.0985,237.96,237.92,8.6148944]
[1733502452355,6.5160944,237.98,237.92,6.5160944]
[1733502453460,1.2854,238.06,237.92,6.5160944]
[1733502453662,6.5160944,238.0,237.92,6.5160944]
[1733502453861,6.5160944,237.95,237.76,5.84192632]
[1733502454053,9.2760944,237.95,237.87,2.0993]
[1733502454254,9.2760944,237.95,237.88,6.5160944]
[1733502454455,2.099,237.92,237.84,1.3478]
[1733502454759,2.76,237.95,237.89,6.5160944]
[1733502455263,2.76,237.95,237.9,2.099]
[1733502455765,2.0988,237.93,237.9,2.099]
[1733502456159,2.76,237.95,237.89,6.5160944]
[1733502456362,2.0989,237.92,237.89,6.5160944]
[1733502456861,2.76,237.95,237.88,2.0992]
[1733502457163,2.76,237.95,237.88,8.6152944]
[1733502457359,2.099,237.91,237.88,6.5160944]
[1733502457966,2.099,237.9,237.88,6.5160944]
[1733502458156,6.5160944,237.94,237.88,6.5160944]
[1733502458355,2.76,237.95,237.88,8.6152944]
[1733502458563,2.099,237.92,237.88,8.6152944]
[1733502458761,2.76,237.95,237.88,6.5160944]
[1733502459360,2.0989,237.92,237.88,8.6152944]
[1733502459766,2.0989,237.92,237.9,6.5160944]
[1733502459960,2.099,237.91,237.88,8.6152944]
[1733502460163,2.099,237.91,237.88,6.5160944]
[1733502460368,6.5160944,237.94,237.84,1.3478]
[1733502460562,2.0993,237.88,237.85,6.5160944]
[1733502460863,2.0993,237.88,237.84,1.3478]
[1733502460864,6.5160944,237.94,237.84,1.3478]
[1733502461071,6.5160944,237.92,237.85,6.5160944]
[1733502461271,6.5160944,237.92,237.84,1.3478]
[1733502461568,6.5160944,237.9,237.84,1.3478]
[1733502462465,2.0994,237.87,237.85,6.5160944]
[1733502463366,6.5160944,237.9,237.83,6.5160944]
[1733502463572,2.76,237.95,237.83,6.5160944]
[1733502463573,1.2556,237.94,237.83,6.5160944]
[1733502463865,6.5160944,237.91,237.83,6.5160944]
[1733502464174,2.0994,237.87,237.83,8.6157944]
[1733502465265,6.5160944,237.91,237.81,1.3183]
[1733502465466,6.5160944,237.89,237.83,6.5160944]
[1733502465667,0.62408122,237.93,237.81,1.3183]
[1733502466070,7.14013501,237.92,237.85,6.5160944]
[1733502466276,6.5160944,237.92,237.85,6.5160944]
[1733502466467,2.0994,237.86,237.81,3.4181]
[1733502466673,6.5160944,237.89,237.82,6.5160944]
[1733502466873,2.0995,237.85,237.82,6.5160944]
[1733502467776,1.2556,237.94,237.82,8.6157944]
[1733502467976,6.5160944,237.89,237.82,6.5160944]
[1733502468178,6.5160944,237.87,237.82,6.5160944]
[1733502468375,9.2760944,237.89,237.82,6.5160944]
[1733502468875,2.0993,237.87,237.82,8.6157944]
[1733502469080,9.2760944,237.89,237.82,8.6157944]
[1733502469279,2.76,237.89,237.84,6.5160944]
[1733502469473,2.0994,237.86,237.84,6.5160944]
[1733502469777,2.76,237.89,237.84,6.5160944]
[1733502469978,2.0993,237.87,237.86,6.5160944]
[1733502471579,6.5160944,237.92,237.78,1.3659]
[1733502471879,6.5160944,237.92,237.85,6.5160944]
[1733502472880,2.0992,237.89,237.85,6.5160944]
[1733502473082,2.0992,237.89,237.85,8.6155944]
[1733502474385,2.0992,237.88,237.85,6.5160944]
[1733502474880,6.5160944,237.92,237.85,6.5160944]
[1733502475084,6.5160944,237.88,237.78,1.3659]
[1733502475381,1.2611,237.98,237.86,6.5160944]
[1733502475584,6.5160944,237.94,237.86,8.6154944]
[1733502475787,6.5160944,237.94,237.86,6.5160944]
[1733502475990,2.0992,237.89,237.86,6.5160944]
[1733502476582,2.0993,237.88,237.86,6.5160944]
[1733502477383,2.0991,237.89,237.86,6.5160944]
[1733502477981,2.0992,237.88,237.86,6.5160944]
[1733502479495,2.76,237.93,237.86,6.5160944]
[1733502479691,2.0993,237.87,237.85,6.5160944]
[1733502479993,6.5160944,237.92,237.85,6.5160944]
[1733502480195,2.0993,237.88,237.85,6.5160944]
[1733502480893,6.5160944,237.92,237.86,2.0993]
[1733502481090,2.76,237.93,237.86,2.0993]
[1733502481291,2.0992,237.89,237.85,8.6155944]
[1733502481593,2.0992,237.89,237.85,6.5160944]
[1733502481793,2.0992,237.89,237.85,8.6154944]
[1733502482999,2.0991,237.9,237.87,2.0993]
[1733502483496,2.0991,237.9,237.86,2.0994]
[1733502484398,2.099,237.91,237.87,2.0992]
[1733502484602,2.099,237.91,237.87,6.5160944]
[1733502484995,2.099,237.91,237.87,8.6153944]
[1733502485396,2.0989,237.92,237.87,6.5160944]
[1733502485603,2.76,237.96,237.89,6.5160944]
[1733502486105,2.0988,237.93,237.89,6.5160944]
[1733502486598,2.0988,237.93,237.9,2.099]
[1733502486899,2.0989,237.92,237.83,1.3693]
[1733502487104,2.76,237.96,237.83,1.3693]
[1733502487105,6.5160944,237.93,237.83,1.3693]
[1733502487304,6.5160944,237.93,237.85,6.5160944]
[1733502488002,2.0991,237.9,237.86,2.0994]
[1733502488405,2.76,237.96,237.87,6.5160944]
[1733502488605,6.5160944,237.94,237.87,6.5160944]
[1733502489605,2.0989,237.92,237.88,2.0992]
[1733502491706,2.099,237.91,237.88,2.0992]
[1733502491899,2.099,237.91,237.87,8.6153944]
[1733502492504,2.76,237.96,237.87,8.6153944]
[1733502492505,2.76,237.96,237.87,6.5160944]
[1733502492702,1.2611,237.98,237.9,6.5160944]
[1733502492703,7.7771944,237.98,237.9,6.5160944]
[1733502493311,2.0987,237.94,237.88,6.5160944]
[1733502493505,1.3674,238.06,237.92,6.5160944]
[1733502493703,6.5160944,238.0,237.94,6.5160944]
[1733502493907,6.5160944,238.0,237.92,6.5160944]
[1733502494408,6.5160944,238.0,237.94,6.5160944]
[1733502494903,6.5160944,238.02,237.94,6.5160944]
[1733502495407,6.5160944,238.02,237.96,2.0985]
[1733502496211,6.5160944,238.02,237.96,8.6145944]
[1733502496804,2.0982,238.0,237.96,8.6145944]
[1733502497202,6.5160944,238.02,237.96,8.6145944]
[1733502497600,41.5817869,239.66,237.89,2.6539]
[1733502497601,348.4957609,238.37,237.97,2.76]
[1733502497811,1.2848,238.27,238.21,6.5160944]
[1733502498005,11.97941213,238.26,238.19,6.5160944]
[1733502498207,11.97941213,238.25,238.21,6.5160944]
[1733502498509,0.62482858,238.24,238.11,2.76]
[1733502498704,0.62482858,238.25,238.19,6.5160944]
[1733502498905,0.62482858,238.24,238.15,2.0968]
[1733502499105,2.0966,238.18,238.07,2.76]
[1733502499305,6.5160944,238.21,238.13,6.5160944]
[1733502499512,1.2848,238.27,238.18,6.5160944]
[1733502499703,2.096,238.25,238.22,6.5160944]
[1733502499904,0.62530919,238.24,238.22,6.5160944]
[1733502500111,1.2848,238.27,238.22,6.5160944]
[1733502500308,0.62532581,238.26,238.22,6.5160944]
[1733502500506,1.25064488,238.26,238.22,6.5160944]
[1733502500702,0.62532581,238.26,238.22,6.5160944]
[1733502503723,0.62532581,238.26,238.22,8.6122944]
[1733502504117,0.62532581,238.26,238.24,6.5160944]
[1733502505513,0.62532581,238.26,238.16,2.74]
[1733502505715,0.62532581,238.26,238.22,6.5160944]
[1733502506620,2.72122581,238.26,238.22,6.5160944]
[1733502506817,0.62532581,238.26,238.16,2.74]
[1733502507018,7.14142021,238.26,238.19,6.5160944]
[1733502507715,2.0961,238.23,238.19,6.5160944]
[1733502507915,6.5160944,238.2,238.13,6.5160944]
[1733502508220,6.5160944,238.18,238.11,6.5160944]
[1733502508811,2.0968,238.16,238.11,6.5160944]
[1733502509221,6.5160944,238.18,238.11,6.5160944]
[1733502509419,2.097,238.14,238.05,2.0977]
[1733502509619,2.097,238.14,238.09,6.5160944]
[1733502509821,6.5160944,238.1,238.0,1.3426]
[1733502510019,2.0976,238.07,238.02,6.5160944]
[1733502510220,2.0976,238.07,238.01,6.5160944]
[1733502511220,2.0976,238.07,238.0,1.3426]
[1733502511221,2.0976,238.07,238.03,6.5160944]
[1733502511521,8.6135944,238.08,238.03,6.5160944]
[1733502511714,6.5160944,238.08,238.03,6.5160944]
[1733502511918,9.2560944,238.1,238.03,6.5160944]
[1733502512119,2.0976,238.07,238.01,6.5160944]
[1733502512422,6.5160944,238.08,238.01,6.5160944]
[1733502512620,2.0975,238.07,238.01,6.5160944]
[1733502512823,2.0975,238.07,238.03,6.5160944]
[1733502514619,1.3313,238.13,238.05,6.5160944]
[1733502514818,1.3313,238.13,238.07,6.5160944]
[1733502515419,3.4284,238.13,238.07,6.5160944]
[1733502516017,4.8369,238.14,238.04,10.15566392]
[1733502517627,4.8369,238.14,238.08,2.0974]
[1733502518022,2.74,238.14,238.08,2.0974]
[1733502518222,2.097,238.13,238.08,2.0974]
[1733502518732,4.8369,238.14,238.09,2.0973]
[1733502519027,2.74,238.14,238.09,2.0973]
[1733502519227,2.097,238.13,238.07,2.0975]
[1733502519427,2.097,238.13,238.04,10.15566392]
[1733502519930,2.097,238.13,238.06,2.0976]
[1733502520136,2.097,238.13,238.04,10.15566392]
[1733502520938,2.097,238.13,238.06,2.0976]
[1733502521138,2.0971,238.12,238.04,10.15566392]
[1733502521433,2.74,238.14,238.01,10.15566392]
[1733502521638,2.74,238.14,238.03,2.0979]
[1733502521837,1.323,238.13,238.03,2.0979]
[1733502522133,1.323,238.13,238.02,2.098]
[1733502522435,1.323,238.13,238.01,10.15566392]
[1733502522635,1.323,238.13,237.97,2.74]
[1733502522636,10.15566392,238.12,237.98,10.15566392]
[1733502523734,2.0975,238.08,238.03,2.0978]
[1733502524436,2.74,238.1,238.01,10.15566392]
[1733502524634,2.0978,238.05,237.98,10.15566392]
[1733502525841,2.0976,238.07,237.98,10.15566392]
[1733502526042,2.74,238.1,237.98,10.15566392]
[1733502526841,2.0979,238.03,237.98,10.15566392]
[1733502527037,2.74,238.1,237.98,10.15566392]
[1733502527238,2.74,238.1,237.99,2.0982]
[1733502528042,2.74,238.1,238.01,2.098]
[1733502528248,2.74,238.1,238.01,10.15566392]
[1733502528649,2.74,238.1,238.02,2.098]
[1733502529046,2.0976,238.07,238.02,2.098]
[1733502529348,2.0976,238.07,238.01,10.15566392]
[1733502529648,2.0977,238.06,238.01,10.15566392]
[1733502529847,2.74,238.1,237.98,10.15566392]
[1733502530045,2.74,238.1,238.01,2.098]
[1733502530245,2.0977,238.06,238.01,2.098]
[1733502530551,2.74,238.1,238.0,2.0982]
[1733502530944,2.0979,238.04,238.0,2.0982]
[1733502531149,2.74,238.04,237.93,1.2998]
[1733502531445,2.74,238.04,237.94,346.79382392]
[1733502531748,2.74,238.04,237.97,2.0984]
[1733502532753,2.098,238.02,237.97,2.0984]
[1733502534249,2.0981,238.01,237.97,2.0984]
[1733502534649,2.74,238.04,237.94,336.63816]
[1733502535042,2.6038,238.03,237.94,336.63816]
[1733502535450,2.0985,237.97,237.94,336.63816]
[1733502535949,6.50639385,238.02,237.95,6.50639385]
[1733502536244,2.6038,238.03,237.99,6.50639385]
[1733502537150,6.50639385,238.04,237.99,6.50639385]
[1733502537641,9.24639385,238.06,238.01,6.50639385]
[1733502538546,2.0977,238.06,238.02,2.0979]
[1733502538746,9.24639385,238.08,238.02,2.0979]
[1733502538950,2.0977,238.06,238.02,2.0979]
[1733502539445,2.0976,238.06,238.01,8.60439385]
[1733502539646,2.0976,238.06,238.01,6.50639385]
[1733502540348,4.193,238.2,238.02,2.0979]
[1733502540550,6.50639385,238.13,238.06,6.50639385]
[1733502540750,6.50639385,238.11,238.04,6.50639385]
[1733502541156,6.50639385,238.13,238.08,2.0975]
[1733502541646,6.50639385,238.13,237.99,1.345]
[1733502541647,8.60379385,238.09,238.05,2.0977]
[1733502541843,6.50639385,238.09,238.05,2.0977]
[1733502542044,6.50639385,238.09,238.02,6.50639385]
[1733502542454,6.50639385,238.09,238.07,2.0976]
[1733502543056,8.60359385,238.11,238.07,2.0976]
[1733502543248,6.50639385,238.11,238.08,2.0975]
[1733502543551,6.50639385,238.11,238.04,6.50639385]
[1733502544353,6.50639385,238.13,238.06,6.50639385]
[1733502544759,8.60339385,238.13,238.09,2.0974]
[1733502545354,8.60339385,238.13,238.07,2.0975]
[1733502545550,8.60339385,238.13,238.06,6.50639385]
[1733502545852,6.50639385,238.12,238.06,6.50639385]
[1733502546157,6.50639385,238.12,238.08,2.0974]
[1733502548061,8.60349385,238.12,238.07,2.0975]
[1733502548661,8.60359385,238.12,238.07,2.0975]
[1733502548859,6.50639385,238.12,238.07,2.0975]
[1733502549161,2.74,238.15,238.07,2.0975]
[1733502549363,2.74,238.15,238.06,6.50639385]
[1733502549364,6.50639385,238.13,238.06,6.50639385]
[1733502549756,6.50639385,238.13,238.08,2.0975]
[1733502549957,6.50639385,238.13,238.06,6.50639385]
[1733502550462,6.50639385,238.13,238.08,2.0975]
[1733502550759,2.0969,238.15,238.08,6.50639385]
[1733502550957,8.60329385,238.15,238.08,6.50639385]
[1733502551158,2.74,238.17,238.08,6.50639385]
[1733502551457,2.74,238.17,237.99,1.345]
[1733502551458,7.82199385,238.19,238.1,6.50639385]
[1733502551658,0.62622382,238.18,238.13,2.097]
[1733502552156,2.0966,238.18,238.13,2.097]
[1733502553062,7.82199385,238.19,238.13,2.097]
[1733502553063,2.0967,238.17,238.13,2.097]
[1733502553360,6.50639385,238.15,238.08,6.50639385]
[1733502553560,8.60329385,238.15,238.08,6.50639385]
[1733502553760,8.60329385,238.15,238.11,2.0972]
[1733502554357,6.50639385,238.15,238.11,2.0972]
[1733502555356,6.50639385,238.17,238.11,2.0972]
[1733502555756,1.2785,238.26,238.13,2.097]
[1733502555964,1.2785,238.26,238.12,6.50639385]
[1733502555965,6.50639385,238.2,238.12,6.50639385]
[1733502556271,0.62605523,238.19,238.16,2.0967]
[1733502556457,2.0966,238.18,238.12,6.50639385]
[1733502557365,2.0966,238.18,238.14,2.0969]
[1733502557764,2.0966,238.18,238.15,2.0968]
[1733502557959,2.0965,238.19,238.15,2.0968]
[1733502558162,1.2785,238.26,238.15,6.50639385]
[1733502558464,6.50639385,238.23,238.15,6.50639385]
[1733502558661,2.0964,238.21,238.15,6.50639385]
[1733502559464,2.0964,238.2,238.15,6.50639385]
[1733502560364,6.50639385,238.23,238.15,6.50639385]
[1733502561366,2.0964,238.2,238.13,2.097]
[1733502561558,2.0964,238.2,238.15,6.50639385]
[1733502561965,6.50639385,238.23,238.15,6.50639385]
[1733502562264,2.0966,238.18,238.13,6.50639385]
[1733502562464,6.50639385,238.21,238.15,2.0968]
[1733502563468,2.0966,238.19,238.15,2.0968]
[1733502563666,6.50639385,238.21,238.14,2.0969]
[1733502564064,6.50639385,238.19,238.09,1.3509]
[1733502564264,6.50639385,238.19,238.11,6.50639385]
[1733502564265,9.24639385,238.19,238.11,6.50639385]
[1733502564465,2.0968,238.16,238.09,1.3509]
[1733502564663,2.0968,238.16,238.12,6.50639385]
[1733502564862,2.0968,238.16,238.12,8.60339385]
[1733502565060,2.74,238.19,238.14,6.50639385]
[1733502565263,2.74,238.19,238.09,1.3509]
[1733502565467,2.74,238.19,238.14,6.50639385]
[1733502565669,2.0966,238.18,238.14,6.50639385]
[1733502566870,2.0967,238.17,238.14,6.50639385]
[1733502567268,2.74,238.19,238.14,8.60329385]
[1733502568368,2.74,238.19,238.15,2.0968]
[1733502569668,2.0967,238.18,238.15,2.0968]
[1733502570070,2.74,238.19,238.17,2.0967]
[1733502570266,2.0964,238.2,238.17,2.0967]
[1733502570468,6.50639385,238.23,238.16,6.50639385]
[1733502570674,1.2785,238.26,238.16,6.50639385]
[1733502570869,0.6251066,238.25,238.18,6.50639385]
[1733502571071,6.50639385,238.24,238.18,6.50639385]
[1733502571378,6.50639385,238.24,238.18,2.0965]
[1733502572276,6.50639385,238.22,238.16,8.60309385]
[1733502572472,6.50639385,238.22,238.16,6.50639385]
[1733502572867,6.50639385,238.24,238.16,6.50639385]
[1733502573672,2.0963,238.21,238.17,2.0967]
[1733502573872,6.50639385,238.22,238.17,2.0967]
[1733502574276,2.0963,238.21,238.17,2.0967]
[1733502578076,2.0964,238.2,238.17,2.0967]
[1733502578481,6.50639385,238.24,238.17,2.0967]
[1733502578683,2.0964,238.21,238.17,2.0967]
[1733502579281,6.50639385,238.24,238.17,2.0967]
[1733502580181,2.0964,238.21,238.17,2.0967]
[1733502580778,2.0964,238.21,238.18,2.0966]
[1733502582381,2.0962,238.22,238.18,2.0966]
[1733502582982,2.0964,238.21,238.18,2.0966]
[1733502583574,6.50639385,238.24,238.18,2.0966]